{"text_format":"2","workbook":"xlsx","n_sheets":1,"sheets":["nota integrativa"],"not_rendered":{"charts":0,"images":0,"macros":0,"external_links":5,"defined_names":32,"comments":0,"pivot_tables":0},"unopened":[],"bounds":{"document_bytes":16777216,"sheet_cells":100000,"run_cost":"one","rows_first":2000,"rows_last":500,"rows_between":2000,"halvings":0,"cell_chars":16384,"cell_head_chars":4096},"cells_cut":0,"cells_raw":0,"read":"whole","date_system":"1900"}

{"sheet":"nota integrativa","index":0,"n_rows":350,"n_cols":16,"rows_kept":350,"cut":false,"hidden":false,"merged":[[348,5,348,7],[341,1,341,3],[341,4,341,6],[341,7,341,8],[343,0,343,8],[345,0,345,8],[347,5,347,7],[339,1,339,3],[339,4,339,6],[339,7,339,8],[340,1,340,3],[340,4,340,6],[340,7,340,8],[327,0,327,8],[329,0,329,8],[331,0,331,8],[333,0,333,8],[335,0,335,8],[337,0,337,8],[318,1,318,5],[319,1,319,5],[320,1,320,5],[321,1,321,5],[323,0,323,8],[325,0,325,8],[312,1,312,5],[313,1,313,5],[314,1,314,5],[315,1,315,5],[316,1,316,5],[317,1,317,5],[304,3,304,5],[305,3,305,5],[307,0,307,8],[309,1,309,5],[310,1,310,5],[311,1,311,5],[291,2,291,7],[292,2,292,7],[294,1,294,6],[299,0,299,8],[301,0,301,8],[302,0,302,8],[284,2,284,7],[285,2,285,7],[287,1,287,6],[288,2,288,7],[289,2,289,7],[290,2,290,7],[278,1,278,6],[279,1,279,6],[280,1,280,6],[281,1,281,7],[282,1,282,8],[283,1,283,6],[272,1,272,6],[273,1,273,6],[274,1,274,6],[275,1,275,7],[276,1,276,6],[277,1,277,6],[264,0,264,8],[266,0,266,8],[268,1,268,8],[269,1,269,5],[270,1,270,6],[271,1,271,6],[255,2,255,4],[256,2,256,4],[258,0,258,8],[260,0,260,8],[262,0,262,8],[263,0,263,8],[246,0,246,8],[248,0,248,8],[251,2,251,4],[252,2,252,4],[253,2,253,4],[254,2,254,4],[237,2,237,4],[238,2,238,4],[239,2,239,4],[240,2,240,4],[242,0,242,8],[244,0,244,8],[231,2,231,4],[232,2,232,4],[233,2,233,4],[234,0,234,8],[235,0,235,8],[236,0,236,8],[220,2,220,4],[221,2,221,4],[222,2,222,4],[225,0,225,8],[227,0,227,8],[229,0,229,8],[209,2,209,4],[210,2,210,4],[212,0,212,8],[214,0,214,8],[216,0,216,8],[218,0,218,8],[202,0,202,8],[203,0,203,8],[205,2,205,4],[206,2,206,4],[207,2,207,4],[208,2,208,4],[191,0,191,8],[193,0,193,8],[195,0,195,8],[197,0,197,8],[199,0,199,8],[201,0,201,8],[183,2,183,4],[184,2,184,4],[185,2,185,4],[186,2,186,4],[187,2,187,4],[189,0,189,8],[175,0,175,8],[177,0,177,8],[179,2,179,4],[180,2,180,4],[181,2,181,4],[182,2,182,4],[160,0,160,1],[160,2,162,2],[164,0,164,1],[164,2,167,2],[168,0,168,1],[168,2,170,2],[147,2,147,4],[148,0,148,1],[148,2,150,2],[152,0,152,1],[152,2,154,2],[156,0,156,1],[156,2,158,2],[139,0,139,8],[142,0,142,8],[143,0,143,8],[145,0,146,1],[145,2,146,4],[145,5,146,5],[145,6,146,6],[145,7,146,7],[145,8,146,8],[129,0,129,8],[131,0,131,8],[133,0,133,8],[135,0,135,8],[136,0,136,8],[137,0,137,8],[120,0,120,5],[121,0,121,5],[122,0,122,5],[123,0,123,5],[125,0,125,8],[127,0,127,8],[110,0,110,8],[111,0,111,8],[112,0,112,8],[115,0,115,8],[117,0,117,8],[119,0,119,5],[102,2,102,4],[103,2,103,4],[104,2,104,4],[105,2,105,4],[108,0,108,8],[109,0,109,8],[92,2,92,4],[93,2,93,4],[94,2,94,4],[97,0,97,8],[99,0,99,8],[101,2,101,4],[83,0,83,9],[84,0,84,9],[86,0,86,9],[87,0,87,9],[89,0,89,8],[91,2,91,4],[74,2,74,4],[77,0,77,9],[78,0,78,8],[79,0,79,8],[80,0,80,9],[81,0,81,9],[65,0,65,4],[67,0,67,8],[68,0,68,9],[70,0,70,8],[72,2,72,4],[73,2,73,4],[61,0,61,1],[61,2,61,4],[62,0,62,1],[62,2,62,4],[63,0,63,1],[63,2,63,4],[58,0,58,1],[58,2,58,4],[59,0,59,1],[59,2,59,4],[60,0,60,1],[60,2,60,4],[55,0,55,1],[55,2,55,4],[56,0,56,1],[56,2,56,4],[57,0,57,1],[57,2,57,4],[52,0,52,1],[52,2,52,4],[53,0,53,1],[53,2,53,4],[54,0,54,1],[54,2,54,4],[49,0,50,1],[49,2,50,4],[51,0,51,1],[51,2,51,4],[38,0,38,8],[39,0,39,8],[40,0,40,8],[42,0,42,8],[44,0,44,8],[45,0,45,8],[0,0,0,8],[20,0,20,8],[21,0,21,8],[35,0,35,8],[36,0,36,8],[37,0,37,8],[46,0,46,8],[47,0,47,8],[48,0,48,8]]}
[{"$f":"+[5]copertina!D9","v":"COMUNE DI RANZANICO"},{"$nulls":8}," "]
[]
[]
[]
[]
[]
["  "]
[" "]
[" "]
[" "]
[" "]
[" "]
[" "]
[" "]
[" "]
[" "]
[" "]
[" "]
[" "]
[" "]
["NOTA INTEGRATIVA AL BILANCIO DI "]
["PREVISIONE 2018-2020"]
[" "]
[" "]
[" "]
[" "]
[" "]
[" "]
[" "]
[" "]
[" "]
[" "]
["Premessa "]
[" "]
[]
["La presente nota integrativa è prevista dal punto 9.11 del “Principio contabile applicato concernente la programmazione del bilancio” allegato al D. Lgs. 118 del 23.06.2011, come modificato dal D. Lgs. n. 126 del 10.08.2014."]
["Il contenuto della nota integrativa è determinato dal principio sopra citato ed ha la funzione di integrare i dati quantitativi esposti negli schemi di bilancio al fine di rendere più chiara e significativa la lettura dello stesso."]
["Il presente documento ha essenzialmente tre funzioni:"]
["•      Analitico-descrittiva, che dà l’illustrazione di dati che per la loro sinteticità non sono in grado di essere pienamente compresi;"]
["•      Informativa, che prevede l’indicazione di ulteriori dati che non possono essere inseriti nei documenti quantitativo-contabili;"]
["•      Esplicativa, che si traduce nell’evidenziazione e nella motivazione delle ipotesi assunte e dei criteri di valutazione adottati e che sono alla base della determinazione dei valori di bilancio."]
[" "]
["1) Criteri di valutazione adottati per la formulazione delle previsioni, con particolare riferimento agli stanziamenti riguardanti gli accantonamenti per le spese potenziali e al fondo crediti di dubbia esigibilità, dando illustrazione dei crediti per i quali non è previsto l’accantonamento a tale fondo."]
[" "]
["Le previsioni del bilancio  sono state effettuate in base ai principi allegati al D.Lgs. 118/2011 ed ai risultati delle precedenti gestioni di bilancio."]
["Non sono stati effettuati accantonamenti per spese potenziali poiché, al momento della stesura del bilancio, non si ravvisano segnali o indicazioni che possano far ritenere effettiva questa eventualità. Il fondo crediti di dubbia esigibilità è stato costituito accantonando una quota delle entrate accertate per competenza ed oggetto di analisi secondo le disposizioni dei nuovi principi contabili."]
["Oltre l’accantonamento previsto per l’indennità di fine mandato del Sindaco, istituito per ciascun anno del triennio considerato secondo il principio cantabile applicato concernente la contabilità finanziaria di cui all’all.4/2 del D.Lgs.118/2001, non si è ravvisata la necessità di istituire ulteriori accantonamenti in sede di bilancio di previsione, anche per evitare di distrarre risorse alla gestione.  Di seguito sono analizzate le principali voci di entrata:"]
[]
["RIEPILOGO GENERALE ENTRATE PER TITOLI"]
["TITOLO",null,"DENOMINAZIONE"]
[{"$nulls":5},"PREV.DEF.\no REND.","PREVISIONI              ANNO 2018","PREVISIONI                     ANNO 2019","PREVISIONI                     ANNO 2019"]
[null,null,"Fondo pluriennale vincolato per spese correnti ",null,null,{"$f":"[5]PAREGGIO!C4","v":13005.83},{"$f":"[5]PAREGGIO!E4","v":0},{"$f":"[5]PAREGGIO!F4","v":0},{"$f":"[5]PAREGGIO!G4","v":0}]
[null,null,"Fondo pluriennale vincolato per spese in conto capitale ",null,null,{"$f":"[5]PAREGGIO!C5","v":456966.7},{"$f":"[5]PAREGGIO!E5","v":0},{"$f":"[5]PAREGGIO!F5","v":0},{"$f":"[5]PAREGGIO!G5","v":0}]
[null,null,"Utilizzo avanzo di Amministrazione ",null,null,{"$f":"[5]PAREGGIO!C3","v":40000},{"$f":"[5]PAREGGIO!E3","v":0},{"$f":"[5]PAREGGIO!F3","v":0},{"$f":"[5]PAREGGIO!G3","v":0}]
[null,null,"- di cui avanzo vincolato utilizzato anticipatamente ",null,null,0,0,0,0]
[1,null,"Entrate correnti di natura tributaria, contributiva e perequativa",null,null,{"$f":"[5]PAREGGIO!C7","v":826800},{"$f":"[5]PAREGGIO!E7","v":838800},{"$f":"[5]PAREGGIO!F7","v":831550},{"$f":"[5]PAREGGIO!G7","v":828550}]
[2,null,"Trasferimenti correnti",null,null,{"$f":"[5]PAREGGIO!C8","v":14700},{"$f":"[5]PAREGGIO!E8","v":16300},{"$f":"[5]PAREGGIO!F8","v":16300},{"$f":"[5]PAREGGIO!G8","v":16300}]
[3,null,"Entrate extratributarie",null,null,{"$f":"[5]PAREGGIO!C9","v":190269},{"$f":"[5]PAREGGIO!E9","v":174660},{"$f":"[5]PAREGGIO!F9","v":174950},{"$f":"[5]PAREGGIO!G9","v":176050}]
[4,null,"Entrate in conto capitale",null,null,{"$f":"[5]PAREGGIO!C10","v":188748},{"$f":"[5]PAREGGIO!E10","v":134400},{"$f":"[5]PAREGGIO!F10","v":75000},{"$f":"[5]PAREGGIO!G10","v":75000}]
[5,null,"Entrate da riduzione di attività finanziarie",null,null,{"$f":"[5]PAREGGIO!C11","v":0},{"$f":"[5]PAREGGIO!E11","v":0},{"$f":"[5]PAREGGIO!F11","v":0},{"$f":"[5]PAREGGIO!G11","v":0}]
[6,null,"Accensione prestiti",null,null,{"$f":"[5]PAREGGIO!C12","v":0},{"$f":"[5]PAREGGIO!E12","v":0},{"$f":"[5]PAREGGIO!F12","v":0},{"$f":"[5]PAREGGIO!G12","v":0}]
[7,null,"Anticipazioni da istituto tesoriere/cassiere",null,null,{"$f":"[5]PAREGGIO!C13","v":0},{"$f":"[5]PAREGGIO!E13","v":0},{"$f":"[5]PAREGGIO!F13","v":0},{"$f":"[5]PAREGGIO!G13","v":0}]
[9,null,"Entrate per conto terzi e partite di giro",null,null,{"$f":"[5]PAREGGIO!C14","v":420750},{"$f":"[5]PAREGGIO!E14","v":414750},{"$f":"[5]PAREGGIO!F14","v":414750},{"$f":"[5]PAREGGIO!G14","v":414750}]
[null,null,"Totale generale delle entrate",null,null,{"$f":"SUM(F52:F63)","v":2151239.5300000003},{"$f":"SUM(G52:G63)","v":1578910},{"$f":"SUM(H52:H63)","v":1512550},{"$f":"SUM(I52:I63)","v":1510650}]
[" "]
["AVANZO DI AMMINISTRAZIONE:"]
[]
["Viene applicato al bilancio di previsione l'importo di €.30.000, quale quota parte dell'avanzo di amministrazione destinato ad investimenti determinato dalle risultanze del conto consuntivo in approvazione da parte del Consiglio Comunale."]
["a  norma dell'art. 187, comma 2, lett.d) del D.lgs. 267/2000, così come determinato con deliberazione del C.C. n….. Del……… di approvazione del rendiconto 20163;",{"$nulls":9},"??"]
[]
["Titolo I - Entrate correnti di natura tributaria, contributiva e perequativa"]
[" "]
[null,null,"Tipologie di entrata",null,null,"Anno 2018","Anno 2019","Anno 2020"]
[null,null,"Imposte tasse e proventi assimilati",null,null,{"$f":"[5]ENTRATA!I24","v":838800},{"$f":"[5]ENTRATA!J24","v":831550},{"$f":"[5]ENTRATA!K24","v":828550}]
[null,null,"Fondi perequativi da amministrazioni centrali",null,null,{"$f":"[5]ENTRATA!I28","v":0},{"$f":"[5]ENTRATA!J28","v":0},{"$f":"[5]ENTRATA!K28","v":0}]
[{"$nulls":4},"Totale titolo I  ",{"$f":"SUM(F74:F75)","v":838800},{"$f":"SUM(G74:G75)","v":831550},{"$f":"SUM(H74:H75)","v":828550},{"$nulls":5},{"$f":"+[5]ENTRATA!I24-F76","v":0},{"$f":"+[5]ENTRATA!J24-G76","v":0},{"$f":"+[5]ENTRATA!K24-H76","v":0}]
[" "]
["Imposta municipale propria (Imu):"]
["L’imposta municipale propria è confermata nella misura approvata per l’esercizio 2017 con le seguenti aliquote:"]
["•    aliquota 0,40% per l’unità immobiliare adibita ad abitazione principale del soggetto passivo classificata nelle categorie catastali A/1, A/8 e A/9 nonché per le relative pertinenze,  per unità immobiliari di cui siano proprietari o usufruttuari anziani o disabili che acquisiscono la residenza in istituti di ricovero o sanitari a seguito di ricovero permanente, purchè la stessa non sia data in locazione, per unità immobiliari possedute dai cittadini italiani residenti all’estero a titolo di proprietà o di usufrutto in Italia, a condizione che non risulti locata;"]
["•    aliquota 10,6% per aree edificabili;"]
["•    aliquota 10,6% tutti gli altri fabbricati;  "]
[" "]
["Addizionale comunale all’ irpef."]
["E’ confermata nella misura vigente nel 2017 (0,4%).",{"$nulls":9}," "]
[" "]
["Tari"]
["E’ intenzione dell’Amministrazione comunale mantenere invariate le tariffe vigenti."]
[]
["Titolo II – Trasferimenti correnti"]
[]
[null,null,"Tipologie di entrata",null,null,{"$f":"+F73","v":"Anno 2018"},{"$f":"+G73","v":"Anno 2019"},"Anno 2020"]
[null,null,"Trasferimenti correnti da Amministrazioni pubbliche",null,null,{"$f":"[5]ENTRATA!I41+[5]ENTRATA!I46","v":16300},{"$f":"[5]ENTRATA!J41+[5]ENTRATA!J46","v":16300},{"$f":"[5]ENTRATA!K41+[5]ENTRATA!K46","v":16300}]
[null,null,"Trasferimenti correnti da famiglie",null,null,0,0,0]
[null,null,"Trasferimenti correnti da imprese",null,null,0,0,0]
[{"$nulls":4},"Totale titolo II",{"$f":"SUM(F93:F95)","v":16300},{"$f":"SUM(G93:G95)","v":16300},{"$f":"SUM(H93:H95)","v":16300},{"$nulls":5},{"$f":"+F96-[5]ENTRATA!I48","v":0},{"$f":"+G96-[5]ENTRATA!J48","v":0},{"$f":"+H96-[5]ENTRATA!K48","v":0}]
[" "]
["I trasferimenti correnti riguardano le quote di compartecipazione alle spese correnti sostenute dall'ente da parte principalmente di altri enti della pubblica amministrazione quali Stato, Regioni , Comuni e Province oltre che per funzioni proprie per funzioni delegate e nel triennio non si prevedono scostamenti rilevanti rispetto al trend-storico."]
[]
["Titolo III - Entrate extratributarie"]
[" "]
[null,null,"Tipologie di entrata",null,null,{"$f":"+F92","v":"Anno 2018"},{"$f":"+G92","v":"Anno 2019"},"Anno 2020"]
[null,null,"Vendita di beni e servizi e proventi derivanti dalla gestione dei beni",null,null,{"$f":"[5]ENTRATA!I68+[5]ENTRATA!I78","v":120960},{"$f":"[5]ENTRATA!J68+[5]ENTRATA!J78","v":121550},{"$f":"[5]ENTRATA!K68+[5]ENTRATA!K78","v":121650}]
[null,null,"Proventi derivanti dall'attività di controllo e repressione delle irregolarità e degli illeciti",null,null,{"$f":"[5]ENTRATA!I84","v":42000},{"$f":"[5]ENTRATA!J84","v":42000},{"$f":"[5]ENTRATA!K84","v":43000}]
[null,null,"Interessi attivi",null,null,{"$f":"[5]ENTRATA!I90","v":400},{"$f":"[5]ENTRATA!J90","v":100},{"$f":"[5]ENTRATA!K90","v":100}]
[null,null,"Rimborsi e altre entrate correnti",null,null,{"$f":"[5]ENTRATA!I102+[5]ENTRATA!I111+[5]ENTRATA!I115+[5]ENTRATA!I95","v":11300},{"$f":"[5]ENTRATA!J102+[5]ENTRATA!J111+[5]ENTRATA!J115+[5]ENTRATA!J95","v":11300},{"$f":"[5]ENTRATA!K102+[5]ENTRATA!K111+[5]ENTRATA!K115+[5]ENTRATA!K95","v":11300}]
[{"$nulls":4},"Totale titolo III",{"$f":"SUM(F103:F106)","v":174660},{"$f":"SUM(G103:G106)","v":174950},{"$f":"SUM(H103:H106)","v":176050},{"$nulls":5},{"$f":"+F107-[5]PAREGGIO!E9","v":0},{"$f":"+G107-[5]PAREGGIO!F9","v":0},{"$f":"+H107-[5]PAREGGIO!G9","v":0}]
[]
["La quantificazione di queste entrate fa riferimento a leggi e regolamenti, oltre che all’andamento degli esercizi precedenti. Le voci principali sono:"]
["•      Diritti di segreteria;"]
["•      Sanzioni amministrative per violazione al codice della strada;"]
["•      Rimborsi scolastici;"]
["•      Affitti attivi;"]
["•   Rimborsi per i servizi cimiteriali."]
[]
["Titolo IV – Entrate in conto capitale"]
[" "]
["Questa tipologia di entrata finanzia le spese di investimento e comprende:"]
[{"$nulls":6},2018,2019,2020]
[{"$f":"[5]ENTRATA!E140","v":"Proventi da concessioni edilizie e sanzioni urbanistiche"},{"$nulls":5},{"$f":"[5]ENTRATA!I140","v":120000},{"$f":"[5]ENTRATA!J140","v":70000},{"$f":"[5]ENTRATA!K140","v":70000}]
[{"$f":"+[5]ENTRATA!E127","v":"CONTRIBUTO REGIONALE PER REALIZZAZ. OPEN DATA"},{"$nulls":5},{"$f":"+[5]ENTRATA!I127","v":5400},{"$f":"+[5]ENTRATA!J127","v":0},{"$f":"+[5]ENTRATA!K127","v":0}]
[{"$f":"+[5]ENTRATA!E132","v":"ALIENAZIONE DIRITTI REALI (AFFRANCAZIONE LIVELLI)"},{"$nulls":5},{"$f":"+[5]ENTRATA!I132","v":4000},{"$f":"[5]ENTRATA!J126","v":0},{"$f":"[5]ENTRATA!K126","v":0}]
[{"$f":"[5]ENTRATA!E128","v":"CONCORSO DA COMUNI ASSOCIATI  PER \"PROGETTO SICUREZZA\""},{"$nulls":5},{"$f":"[5]ENTRATA!I128","v":0},{"$f":"[5]ENTRATA!J128","v":0},{"$f":"[5]ENTRATA!K128","v":0}]
[{"$f":"[5]ENTRATA!E145","v":"FONDO AREE VERDI ex L.R. 12/2005 e s.m.i."},{"$nulls":5},{"$f":"[5]ENTRATA!I145","v":5000},{"$f":"[5]ENTRATA!J145","v":5000},{"$f":"[5]ENTRATA!K145","v":5000}]
[" "]
["Titolo V – Entrate da riduzione di attività finanziarie",{"$nulls":9}," "]
[" "]
["Nessuna entrata prevista."]
[" "]
["Titolo VI – Accensione di prestiti"]
[" "]
["Nessuna entrata prevista."]
[" "]
["Titolo VII – Anticipazione da Istituto tesoriere/cassiere"]
[" "]
["Data l'ottima liquidità e la gestione ottimale dei flussi di cassa, non è previsto il ricorso all'anticipazione di tesoreria."]
[]
["Titolo XI – Entrate per conto terzi e partite di giro"]
[]
["Di pari importo in entrata e in spesa esse comprendono entrate per partite di giro e per conto terzi. "]
[]
[" "]
["SPESA"]
["RIEPILOGO GENERALE SPESE PER TITOLI"]
[]
["TITOLO",null,"DENOMINAZIONE",null,null,"PREV.DEF.\no REND.","PREVISIONI              ANNO 2018","PREVISIONI                 ANNO 2019","PREVISIONI                 ANNO 2020"]
[]
[null,null,"DISAVANZO DI AMMINISTRAZIONE",null,null,0,0,0,0]
[1,null,"SPESE CORRENTI","previsione di competenza",null,{"$f":"[5]PAREGGIO!C19","v":1014774.8300000001},{"$f":"[5]PAREGGIO!E19","v":998510},{"$f":"[5]PAREGGIO!F19","v":991150},{"$f":"[5]PAREGGIO!G19","v":993900}]
[null,null,null,"di cui già impegnato*",null,null,223951.4,119867,91873.3]
[null,null,null,"di cui fondo pluriennale vincolato",null,{"$f":"[5]PAREGGIO!C4","v":13005.83},{"$f":"[5]PAREGGIO!E4","v":0},{"$f":"[5]PAREGGIO!F4","v":0},{"$f":"[5]PAREGGIO!G4","v":0}]
[]
[2,null,"SPESE IN CONTO CAPITALE","previsione di competenza",null,{"$f":"[5]PAREGGIO!C20","v":685714.7},{"$f":"[5]PAREGGIO!E20","v":134400},{"$f":"[5]PAREGGIO!F20","v":75000},{"$f":"[5]PAREGGIO!G20","v":75000}]
[null,null,null,"di cui già impegnato*",null,null,15226,0,0]
[null,null,null,"di cui fondo pluriennale vincolato",null,{"$f":"[5]PAREGGIO!C5","v":456966.7},{"$f":"[5]PAREGGIO!E5","v":0},{"$f":"[5]PAREGGIO!F5","v":0},{"$f":"[5]PAREGGIO!G5","v":0}]
[]
[3,null,"SPESE PER INCREMENTO DI ATT. FINANZIARIE","previsione di competenza",null,{"$f":"[5]PAREGGIO!C21","v":0},{"$f":"[5]PAREGGIO!E21","v":0},{"$f":"[5]PAREGGIO!F21","v":0},{"$f":"[5]PAREGGIO!G21","v":0}]
[null,null,null,"di cui già impegnato*",null,null,0,0,0]
[null,null,null,"di cui fondo pluriennale vincolato",null,0,0,0,0]
[]
[4,null,"RIMBORSO DI PRESTITI","previsione di competenza",null,{"$f":"[5]PAREGGIO!C22","v":30000},{"$f":"[5]PAREGGIO!E22","v":31250},{"$f":"[5]PAREGGIO!F22","v":31650},{"$f":"[5]PAREGGIO!G22","v":27000}]
[null,null,null,"di cui già impegnato*",null,null,0,0,0]
[null,null,null,"di cui fondo pluriennale vincolato",null,0,0,0,0]
[]
[5,null,"CHIUSURA ANTICIPAZIONI DA ISTITUTO TESORIERE/ CASSIERE","previsione di competenza",null,{"$f":"[5]PAREGGIO!C23","v":0},{"$f":"[5]PAREGGIO!E23","v":0},{"$f":"[5]PAREGGIO!F23","v":0},{"$f":"[5]PAREGGIO!G23","v":0}]
[null,null,null,"di cui già impegnato*",null,null,0,0,0]
[null,null,null,"di cui fondo pluriennale vincolato",null,0,0,0,0]
[]
[7,null,"SPESE PER CONTO TERZI E PARTITE DI GIRO","previsione di competenza",null,{"$f":"[5]PAREGGIO!C25","v":420750},{"$f":"[5]PAREGGIO!E25","v":414750},{"$f":"[5]PAREGGIO!F25","v":414750},{"$f":"[5]PAREGGIO!G25","v":414750}]
[null,null,null,"di cui già impegnato*",null,null,0,0,0]
[null,null,null,"di cui fondo pluriennale vincolato",null,0,0,0,0]
[]
[null,null,"TOTALE TITOLI","previsione di competenza",null,{"$f":"+F149+F153+F157+F161+F165+F169","v":2151239.5300000003},{"$f":"+G149+G153+G157+G161+G165+G169","v":1578910},1512550,1510650]
[null,null,null,"di cui già impegnato*",null,{"$f":"+F150+F154+F158+F162+F166+F170","v":0},{"$f":"+G150+G154+G158+G162+G166+G170","v":239177.4},119867,91873.3]
[" "]
["TITOLO I – Spese correnti"]
[" "]
["Di seguito sono riepilogate le principali voci di spesa corrente suddivise in macroaggregati:"]
[" "]
[null,null,"Macroaggregati di spesa",null,null,{"$f":"+F102","v":"Anno 2018"},{"$f":"+G102","v":"Anno 2019"},"Anno 2020"]
[null,null,"Redditi da lavoro dipendente",null,null,{"$f":"+[5]SPESA!J39+[5]SPESA!J116+[5]SPESA!J139+[5]SPESA!J170+[5]SPESA!J318","v":233700},{"$f":"+[5]SPESA!K39+[5]SPESA!K116+[5]SPESA!K139+[5]SPESA!K170+[5]SPESA!K318","v":214750},{"$f":"+[5]SPESA!L39+[5]SPESA!L116+[5]SPESA!L139+[5]SPESA!L170+[5]SPESA!L318","v":214750}]
[null,null,"Imposte e tasse a carico dell'ente",null,null,{"$f":"[5]SPESA!J13+[5]SPESA!J43+[5]SPESA!J99+[5]SPESA!J120+[5]SPESA!J143+[5]SPESA!J174+[5]SPESA!J322","v":19600},{"$f":"[5]SPESA!K13+[5]SPESA!K43+[5]SPESA!K99+[5]SPESA!K120+[5]SPESA!K143+[5]SPESA!K174+[5]SPESA!K322","v":18200},{"$f":"[5]SPESA!L13+[5]SPESA!L43+[5]SPESA!L99+[5]SPESA!L120+[5]SPESA!L143+[5]SPESA!L174+[5]SPESA!L322","v":18200}]
[null,null,"Acquisto di beni e servizi",null,null,{"$f":"+[5]SPESA!J20+[5]SPESA!J62+[5]SPESA!J79+[5]SPESA!J89+[5]SPESA!J105+[5]SPESA!J125+[5]SPESA!J148+[5]SPESA!J182+[5]SPESA!J192+[5]SPESA!J207+[5]SPESA!J248+[5]SPESA!J264+[5]SPESA!J295+[5]SPESA!J307+[5]SPESA!J334+[5]SPESA!J349+[5]SPESA!J376+[5]SPESA!J399+[5]SPESA!J423+[5]SPESA!J288","v":388780},{"$f":"+[5]SPESA!K20+[5]SPESA!K62+[5]SPESA!K79+[5]SPESA!K89+[5]SPESA!K105+[5]SPESA!K125+[5]SPESA!K148+[5]SPESA!K182+[5]SPESA!K192+[5]SPESA!K207+[5]SPESA!K248+[5]SPESA!K264+[5]SPESA!K295+[5]SPESA!K307+[5]SPESA!K334+[5]SPESA!K349+[5]SPESA!K376+[5]SPESA!K399+[5]SPESA!K423+[5]SPESA!K288","v":382460},{"$f":"+[5]SPESA!L20+[5]SPESA!L62+[5]SPESA!L79+[5]SPESA!L89+[5]SPESA!L105+[5]SPESA!L125+[5]SPESA!L148+[5]SPESA!L182+[5]SPESA!L192+[5]SPESA!L207+[5]SPESA!L248+[5]SPESA!L264+[5]SPESA!L295+[5]SPESA!L307+[5]SPESA!L334+[5]SPESA!L349+[5]SPESA!L376+[5]SPESA!L399+[5]SPESA!L423+[5]SPESA!L288","v":387460}]
[null,null,"Trasferimenti correnti",null,null,{"$f":"+[5]SPESA!J24+[5]SPESA!J68+[5]SPESA!J130+[5]SPESA!J153+[5]SPESA!J159+[5]SPESA!J215+[5]SPESA!J228+[5]SPESA!J234+[5]SPESA!J253+[5]SPESA!J268+[5]SPESA!J280+[5]SPESA!J299+[5]SPESA!J353+[5]SPESA!J370+[5]SPESA!J380+[5]SPESA!J393+[5]SPESA!J403+[5]SPESA!J409+[5]SPESA!J415+[5]SPESA!J386","v":284210},{"$f":"+[5]SPESA!K24+[5]SPESA!K68+[5]SPESA!K130+[5]SPESA!K153+[5]SPESA!K159+[5]SPESA!K215+[5]SPESA!K228+[5]SPESA!K234+[5]SPESA!K253+[5]SPESA!K268+[5]SPESA!K280+[5]SPESA!K299+[5]SPESA!K353+[5]SPESA!K370+[5]SPESA!K380+[5]SPESA!K393+[5]SPESA!K403+[5]SPESA!K409+[5]SPESA!K415+[5]SPESA!K386","v":302250},{"$f":"+[5]SPESA!L24+[5]SPESA!L68+[5]SPESA!L130+[5]SPESA!L153+[5]SPESA!L159+[5]SPESA!L215+[5]SPESA!L228+[5]SPESA!L234+[5]SPESA!L253+[5]SPESA!L268+[5]SPESA!L280+[5]SPESA!L299+[5]SPESA!L353+[5]SPESA!L370+[5]SPESA!L380+[5]SPESA!L393+[5]SPESA!L403+[5]SPESA!L409+[5]SPESA!L415+[5]SPESA!L386","v":302250}]
[null,null,"Interessi passivi",null,null,{"$f":"[5]SPESA!J452","v":22300},{"$f":"[5]SPESA!K452","v":20750},{"$f":"[5]SPESA!L452","v":19250}]
[null,null,"Rimborsi e poste correttive delle entrate",null,null,{"$f":"+[5]SPESA!J93","v":3500},{"$f":"+[5]SPESA!K93","v":3000},{"$f":"+[5]SPESA!L93","v":2000}]
[null,null,"Altre spese correnti",null,null,{"$f":"+[5]SPESA!J29+[5]SPESA!J72+[5]SPESA!J83+[5]SPESA!J109+[5]SPESA!J186+[5]SPESA!J338+[5]SPESA!J357+[5]SPESA!J432+[5]SPESA!J438+[5]SPESA!J196","v":46420},{"$f":"+[5]SPESA!K29+[5]SPESA!K72+[5]SPESA!K83+[5]SPESA!K109+[5]SPESA!K186+[5]SPESA!K338+[5]SPESA!K357+[5]SPESA!K432+[5]SPESA!K438+[5]SPESA!K196","v":49740},{"$f":"+[5]SPESA!L29+[5]SPESA!L72+[5]SPESA!L83+[5]SPESA!L109+[5]SPESA!L186+[5]SPESA!L338+[5]SPESA!L357+[5]SPESA!L432+[5]SPESA!L438+[5]SPESA!L196","v":49990}]
[null,null,"Totale titolo I",2697924,2514246,{"$f":"SUM(F181:F187)","v":998510},{"$f":"SUM(G181:G187)","v":991150},{"$f":"SUM(H181:H187)","v":993900},null,null,{"$f":"+F188-G149","v":0},{"$f":"+G188-H149","v":0},0]
[" "]
["Nella voce “redditi da lavoro dipendente” sono compresi anche gli oneri previdenziali ed assistenziali a carico dell’ente. Tale macroaggregato è stato quantificato per il biennio successivo, proiettando la situazione attuale. "]
[" "]
["Tra le “imposte e tasse a carico dell’ente” la somma maggiore è rappresentata dall’Irap a carico dell’ente."]
[" "]
["Gli “acquisti dei beni e servizi” comprendono le previsioni di spesa necessarie a garantire il regolare funzionamento e la buona gestione dei servizi."]
[" "]
["Tra i “trasferimenti correnti” sono classificati i contributi che l’amministrazione riconosce annualmente a terzi, siano essi privati cittadini o associazioni, oltre alle quote per i servizi in gestione associata."]
[" "]
["Gli “interessi passivi”, sono rappresentati da interessi passivi su mutui in ammortamento nel triennio."]
[" "]
["Tra i “rimborsi e le poste correttive delle entrate” sono compresi gli sgravi e le restituzioni di tributi."]
[" "]
["Le “altre spese correnti” comprendono tutte quelle voci che non trovano collocazione nei precedenti macroaggregati, quali le assicurazioni, la liquidazione dell’iva a debito, il fondo crediti di dubbia esigibilità e il fondo di riserva."]
[]
["Titolo  II – Spese in conto capitale",{"$nulls":11}," "]
[" "]
[null,null,"Macroaggregati di spesa",null,null,{"$f":"F180","v":"Anno 2018"},{"$f":"G180","v":"Anno 2019"},{"$f":"H180","v":"Anno 2020"}]
[null,null,"Investimenti fissi lordi e acquisto di terreni ",null,null,{"$f":"[5]SPESA!J469+[5]SPESA!J476+[5]SPESA!J488+[5]SPESA!J512+[5]SPESA!J522+[5]SPESA!J532+[5]SPESA!J547+[5]SPESA!J567+[5]SPESA!J577+[5]SPESA!J589+[5]SPESA!J600+[5]SPESA!J502+[5]SPESA!J551","v":75170},{"$f":"[5]SPESA!K469+[5]SPESA!K476+[5]SPESA!K488+[5]SPESA!K512+[5]SPESA!K522+[5]SPESA!K532+[5]SPESA!K547+[5]SPESA!K567+[5]SPESA!K577+[5]SPESA!K589+[5]SPESA!K600+[5]SPESA!K502","v":66000},{"$f":"[5]SPESA!L469+[5]SPESA!L476+[5]SPESA!L488+[5]SPESA!L512+[5]SPESA!L522+[5]SPESA!L532+[5]SPESA!L547+[5]SPESA!L567+[5]SPESA!L577+[5]SPESA!L589+[5]SPESA!L600+[5]SPESA!L502","v":66000}]
[null,null,"Contributi agli investimenti ",null,null,{"$f":"+[5]SPESA!J499+[5]SPESA!J583+[5]SPESA!J557","v":44000},{"$f":"+[5]SPESA!K499+[5]SPESA!K583+[5]SPESA!K551","v":9000},{"$f":"+[5]SPESA!L499+[5]SPESA!L583+[5]SPESA!L551","v":9000}]
[null,null,"Altri trasferimenti in conto capitale ",null,null,0,0,0]
[null,null,"Altre spese in conto capitale ",null,null,{"$f":"+[5]SPESA!J537","v":15230},{"$f":"+[5]SPESA!K537","v":0},{"$f":"+[5]SPESA!L537","v":0}]
[null,null,"Totale titolo II ",null,null,{"$f":"SUM(F207:F210)","v":134400},{"$f":"SUM(G207:G210)","v":75000},{"$f":"SUM(H207:H210)","v":75000},null,null,{"$f":"+F211-G153","v":0},{"$f":"+G211-H153","v":0},0]
[" "]
["Nel macroaggregato “Investimenti fissi lordi e acquisto di terreni” sono classificate le spese relative alla realizzazione di nuove opere e agli interventi di manutenzione straordinaria"]
[]
["Titolo III – Spese per incremento di attività finanziarie"]
[]
["In bilancio non emergono valori per questo titolo"]
[" "]
["Titolo IV – Rimborso di prestiti"]
[" "]
[null,null,"Macroaggregati di spesa",null,null,{"$f":"F206","v":"Anno 2018"},{"$f":"G206","v":"Anno 2019"},{"$f":"H206","v":"Anno 2020"}]
[null,null,"Rimborso prestiti a breve termine ",null,null,0,0,0]
[null,null,"Rimborso mutui ed altri finanziamenti a medio lungo termine ",null,null,{"$f":"[5]SPESA!J623","v":31250},{"$f":"[5]SPESA!K623","v":31650},{"$f":"[5]SPESA!L623","v":27000}]
[{"$nulls":4},"Totale titolo IV ",{"$f":"SUM(F222:F223)","v":31250},{"$f":"SUM(G222:G223)","v":31650},{"$f":"SUM(H222:H223)","v":27000},null,null,{"$f":"+F224-[5]SPESA!J621","v":0},{"$f":"+G224-[5]SPESA!K621","v":0},{"$f":"+H224-[5]SPESA!L621","v":0}]
[]
["Nel macroaggregato “Rimborso mutui ed altri finanziamenti a medio lungo termine” sono comprese le quote capitale dei mutui in ammortamento nel triennio considerato e la quota capitale del prestito concesso da Regione Lombardia."]
[" "]
["Titolo V – Restituzione anticipazione istituto tesoriere/cassiere"]
[" "]
["In questo titolo trova iscrizione la restituzione dell’anticipazione di tesoreria corrispondente al titolo VII di entrata."]
[" "]
[null,null,"Macroaggregati di spesa",null,null,{"$f":"F221","v":"Anno 2018"},{"$f":"G221","v":"Anno 2019"},{"$f":"H221","v":"Anno 2020"}]
[null,null,"Restituzione anticipazione di cassa  ",null,null,{"$f":"[5]SPESA!J638","v":0},{"$f":"[5]SPESA!K638","v":0},{"$f":"[5]SPESA!L638","v":0}]
[null,null,"Totale titolo V",null,null,{"$f":"SUM(F233)","v":0},{"$f":"SUM(G233)","v":0},{"$f":"SUM(H233)","v":0}]
[" "]
["Titolo VII – Spese per conto terzi e partite di giro."]
[" "]
[null,null,"Macroaggregati di spesa",null,null,{"$f":"F232","v":"Anno 2018"},{"$f":"G232","v":"Anno 2019"},{"$f":"H232","v":"Anno 2020"}]
[null,null,"Uscite per partite di giro",null,null,{"$f":"[5]SPESA!J663","v":362500},{"$f":"[5]SPESA!K663","v":362500},{"$f":"[5]SPESA!L663","v":362500}]
[null,null,"Uscite per conto terzi",null,null,{"$f":"[5]SPESA!J674","v":52250},{"$f":"[5]SPESA!K674","v":52250},{"$f":"[5]SPESA!L674","v":52250}]
[null,null,"Totale titolo VII ",null,null,{"$f":"SUM(F239:F240)","v":414750},{"$f":"SUM(G239:G240)","v":414750},{"$f":"SUM(H239:H240)","v":414750},null,null,{"$f":"+[5]SPESA!J678-F241","v":0},{"$f":"+[5]SPESA!K678-G241","v":0},{"$f":"+[5]SPESA!L678-H241","v":0}]
[]
["Le spese per conto di terzi e le partite di giro sono state previste a pareggio con le relative entrate di cui al titolo IX."]
[]
["Fondo crediti di dubbia esigibilità e fondo di riserva di cassa"]
[]
["La determinazione dell’accantonamento al fondo crediti di dubbia esigibilità è stata preceduta da un’attenta analisi delle entrate dell’ente per l’individuazione delle tipologie stanziate che possono dar luogo alla formazione di crediti di dubbia e difficile esazione. Le poste di entrata ritenute ricadenti in dette tipologie sono:"]
[]
["Sono state poi confrontate le varie metodologie di calcolo previste dai principi contabili e individuata  quella della media ponderata (metodo B), in base al principio della prudenza, trovando il complemento a 100 della percentuale ottenuta, si è poi provveduto al calcolo dell’accantonamento obbligatorio per ogni singolo anno."]
[]
[{"$nulls":5},{"$f":"F238","v":"Anno 2018"},{"$f":"G238","v":"Anno 2019"},{"$f":"H238","v":"Anno 2020"}]
[null,null,"- Recupero evasione tributaria",null,null,{"$f":"2562.78+373.5","v":2936.28},{"$f":"2657.64+253.98","v":2911.62},{"$f":"2510.51+283.86","v":2794.3700000000003}]
[null,null,"- Tassa Rifiuti",null,null,11066.4,12581.36,14105.6]
[null,null,"- Sanzioni Amministrative",null,null,157.5,178.5,204.25]
[null,null,"- Affitti da beni immobili"]
[null,null,"Totale FCDE minimo da stanziare",null,null,{"$f":"SUM(F252:F255)","v":14160.18},{"$f":"SUM(G252:G255)","v":15671.48},{"$f":"SUM(H252:H255)","v":17104.22}]
[null,null,"Totale FCDE previsto nel bilancio",null,null,{"$f":"[5]SPESA!J437","v":15000},{"$f":"[5]SPESA!K437","v":16000},{"$f":"[5]SPESA!L437","v":17500}]
[]
["E' stanziata nel capitolo relativo al fondo di riserva ordinario e del fondo crediti di dubbia esigibilità la previsione di cassa e costituisce il fondo di riserva per le autorizzazioni di cassa ex art. 166 del TUEL."]
[" "]
["2) Elenco analitico degli utilizzi delle quote vincolate e accantonate del risultato di amministrazione presunto, distinguendo i vincoli derivanti dalla legge e dai principi contabili, dai trasferimenti, da mutui e altri finanziamenti, vincoli formalmente attribuiti dall'ente."]
[" "]
["Con la predisposizione del bilancio di previsione è necessario procedere alla determinazione del risultato di amministrazione presunto che consiste in una previsione ragionevole del risultato di amministrazione dell’esercizio precedente, formulata in base alla situazione dei conti alla data di elaborazione del bilancio di previsione."]
["Al presunto risultato di amministrazione sono stati applicati i  vincoli derivanti dalla gestione precedente."]
["Si riporta la tabella dimostrativa del risultato di amministrazione presunto allegata al bilancio:"]
[" "]
["Determinazione del risultato di amministrazione presunto al 31/12"]
[]
[null,"1) Determinazione del risultato di amministrazione presunto al 31/12/2017:"]
[null," + Risultato di amministrazione iniziale 2017",{"$nulls":6},277363.78999999998]
[null," + Fondo pluriennale vincolato iniziale dell'esercizio 2017",{"$nulls":6},469972.53]
[null," + Entrate già accertate nell'esercizio 2017",{"$nulls":6},1341041.5]
[null," - Uscite già impegnate nell'esercizio 2017",{"$nulls":6},1733815.8]
[null,"+/- Variazione dei residui attivi già verificatesi nel 2017",{"$nulls":6},{"$f":"-4729.4+1812.85","v":-2916.5499999999997}]
[null,"-/+ Variazione dei residui passivi già verificatesi nel 2017",{"$nulls":6},-14767.2]
[null," = Risultato di amministrazione dell'esercizio 2017 e alla data di redazione del bilancio dell'anno 2018",{"$nulls":6},{"$f":"I272-I273+I274-I275+I270+I271","v":366412.67}]
[null," + Entrate presunte per il restante periodo dell`esercizio 2017",{"$nulls":6},0]
[null," - Uscite presunte per il restante periodo dell`esercizio 2017",{"$nulls":6},0]
[null,"+/- Variazioni dei residui attivi, presunte per il restante periodo dell`esercizio 2017",{"$nulls":6},0]
[null,"-/+ Variazioni dei residui passivi, presunte per il restante periodo dell`esercizio 2017",{"$nulls":6},0]
[null," - Fondo pluriennale vincolato finale presunto dell'esercizio 2017"]
[null,"A) Risultato di amministrazione presunto al 31/12/2017",{"$nulls":6},{"$f":"I276+I277-I278+I279-I280-I281","v":366412.67}]
[null,"2) Composizione del risultato di amministrazione presunto al 31/12/2017:"]
[null,"Parte accantonata"]
[null,null,"Fondo crediti di dubbia esigibilità al 31/12/2017",{"$nulls":5},32090.6]
[null,null,"Altri accantonamenti",{"$nulls":5},4712.0600000000004]
[{"$nulls":7},"B) Totale parte accantonata",{"$f":"SUM(I285:I286)","v":36802.659999999996}]
[null,"Parte vincolata"]
[null,null,"Vincoli derivanti da Leggi e principi contabili",{"$nulls":5},9000]
[null,null,"Vincoli derivanti da trasferimenti",{"$nulls":5},0]
[null,null,"Vincoli derivanti dalla contrazione di mutui",{"$nulls":5},0]
[null,null,"Vincoli formalmente attribuiti dall'ente",{"$nulls":5},0]
[null,null,"Altri vincoli da specificare",{"$nulls":5},0]
[{"$nulls":7},"C) Totale parte vincolata",{"$f":"SUM(I289:I293)","v":9000}]
[null,"Parte destinata agli investimenti",{"$nulls":6},0]
[{"$nulls":7},"D) Totale destinata agli investimenti",56185.7]
[{"$nulls":7},"E) Totale parte disponibile ( E=A-B-C-D )",{"$f":"I282-I287-I294-I296","v":264424.31}]
[]
[" "]
["Fondo pluriennale vincolato"]
[" "]
["Il principio della competenza potenziata prevede che il “Fondo pluriennale vincolato” sia uno strumento di rappresentazione della programmazione e previsione delle spese, sia correnti che di investimento, che evidenzi con trasparenza ed attendibilità il procedimento di impiego delle risorse acquisite dall’ente che richiedono un periodo di tempo ultrannuale per il loro effettivo impiego e utilizzo per le finalità programmate e previste."]
["Attuamente il Fondo pluriennale iscritto nel bilancio di previsione è il seguente:"]
[]
[null,null,null,{"$f":"[5]PAREGGIO!A4","v":"F. V. SPESE CORRENTI"},null,null,{"$f":"[5]PAREGGIO!E4","v":0}]
[null,null,null,{"$f":"[5]PAREGGIO!A5","v":"F. V. SPESE INVESTIMENTO"},null,null,{"$f":"[5]PAREGGIO!E5","v":0}]
[" "]
["3)  Elenco degli interventi programmati per spese di investimento finanziati col ricorso al debito e con le risorse disponibili"]
[" ",{"$nulls":5},2018,2019,2020]
[null,{"$f":"+[5]SPESA!F467","v":"INSTALLAZIONE TABELLONI INFORMATIVI ZONA LAGO E VILL.ANGELA MARIA"},{"$nulls":4},{"$f":"+[5]SPESA!J467","v":0},{"$f":"+[5]SPESA!K467","v":8000},{"$f":"+[5]SPESA!L467","v":0}]
[null,{"$f":"+[5]SPESA!F468","v":"REALIZZAZIONE COLLEGAMENTO \"OPEN DATA\" REGIONALE"},{"$nulls":4},{"$f":"+[5]SPESA!J468","v":6000},{"$f":"+[5]SPESA!K468","v":0},{"$f":"+[5]SPESA!L468","v":0}]
[null,{"$f":"+[5]SPESA!F474","v":"MANUTENZIONE STRAORDINARIA IMMOBILI E BENI DEMANIALI"},{"$nulls":4},{"$f":"+[5]SPESA!J474","v":29000},{"$f":"+[5]SPESA!K474","v":48000},{"$f":"+[5]SPESA!L474","v":56000}]
[null,{"$f":"+[5]SPESA!F498","v":"FONDO PER BANDO RECUPERO FACCIATE CENTRO STORICO"},{"$nulls":4},{"$f":"+[5]SPESA!J498","v":2000},{"$f":"+[5]SPESA!K498","v":2000},{"$f":"+[5]SPESA!L498","v":2000}]
[null,{"$f":"+[5]SPESA!F501","v":"ACQUISTO ARREDO PER PALAZZO RE/MERIS (BIBLIOTECA/CENTRO CULTURALE)"},{"$nulls":4},{"$f":"+[5]SPESA!J501","v":18400}]
[null,{"$f":"+[5]SPESA!F511","v":"MANUTENZIONE STRAORDINARIA CENTRO SPORTIVO"},{"$nulls":4},{"$f":"+[5]SPESA!J511","v":6770}]
[null,{"$f":"+[5]SPESA!F535","v":"REDAZIONE VARIANTE AL P.G.T."},{"$nulls":4},{"$f":"+[5]SPESA!J535","v":15230}]
[null,{"$f":"+[5]SPESA!F546","v":"OPERE `FONDO AREE VERDI` L.R. 2/2005 e s.m.i."},{"$nulls":4},{"$f":"+[5]SPESA!J546","v":5000},{"$f":"+[5]SPESA!K546","v":5000},{"$f":"+[5]SPESA!L546","v":5000}]
[null,{"$f":"+[5]SPESA!F551","v":"INSTALLAZIONE CONTROLLO ACCESSI CENTRO RACCOLTA RIFIUTI"},{"$nulls":4},{"$f":"+[5]SPESA!J551","v":5000},{"$f":"+[5]SPESA!K551","v":5000},{"$f":"+[5]SPESA!L551","v":5000}]
[null,{"$f":"+[5]SPESA!F556","v":"RIQUALIFICAZIONE TRATTO LUNGO LAGO (quota in favore dell'Autorita di bacino laghi)"},{"$nulls":4},{"$f":"+[5]SPESA!J556","v":40000}]
[null,{"$f":"+[5]SPESA!F576","v":"ELIMINAZ. BARRIERE ARCHITET. (10% ONERI)"},{"$nulls":4},{"$f":"+[5]SPESA!J576","v":5000},{"$f":"+[5]SPESA!K576","v":5000},{"$f":"+[5]SPESA!L576","v":5000}]
[null,{"$f":"+[5]SPESA!F582","v":"FONDO FINANZIAMENTO OPERE RELIGIOSE/SOCIALI (ONERI)"},{"$nulls":4},{"$f":"+[5]SPESA!J582","v":2000},{"$f":"+[5]SPESA!K582","v":2000},{"$f":"+[5]SPESA!L582","v":2000}]
[null,"TOTALE",{"$nulls":4},{"$f":"+SUM(G310:G321)","v":134400},{"$f":"+SUM(H310:H321)","v":75000},75000,null,{"$f":"+G322-[5]PAREGGIO!E20","v":0},{"$f":"+H322-[5]PAREGGIO!F20","v":0},{"$f":"+I322-[5]PAREGGIO!G20","v":0}]
[]
["4)  Oneri e gli impegni finanziari stimati e stanziati in bilancio, derivanti da contratti relativi a strumenti finanziari derivati o da contratti di finanziamento che includono una componente derivata"]
[" "]
["L’Ente non ha in essere contratti rientranti nelle tipologie sopra specificate."]
[" "]
["5)  Elenco dei propri enti ed organismi strumentali, precisando che i relativi bilanci consuntivi sono consultabili nel proprio sito internet fermo restando quanto previsto per gli enti locali dall'art. 172, comma 1, lettera a) del Tuel"]
[" "]
["L’Ente non possiede organismi strumentali."]
[" "]
["6)  Elenco delle garanzie principali o sussidiarie prestate dall'ente a favore di enti e di altri soggetti ai sensi delle leggi vigenti"]
[" "]
["L'Ente non ha prestato garanzie a favore di enti o di altri soggetti."]
[" "]
["7)  Elenco delle partecipazioni possedute con l'indicazione della relativa quota percentuale"]
[" "]
["L’Ente ha approvato con deliberazione della Giunta comunale il piano di razionalizzazione delle società partecipate ai sensi dell’art.1 comma 611 e seguenti della Legge n.190/2014, atto a cui si rimanda per maggiori dettagli; di seguito saranno elencate soltanto le società a partecipazione diretta:"]
[]
[" ","Denominazione",null,null,"Funzioni attribuite e attività svolte",null,null,"% Partec."]
[null,"Uniacque spa",null,null,"SERVIZIO IDRICO INTEGRATO",null,null,0.11]
[null,"Consorzio Servizi Valle Cavallina",null,null,"SERVIZIO RACCOLTA TRASPORTO E SMALTIMENTO RIFIUTI",null,null,0.43]
[" "]
["8)  Altre informazioni riguardanti le previsioni, richieste dalla legge o necessarie per l'interpretazione del bilancio"]
[" "]
["Si rinvia al contenuto del Documento Unico di Programmazione 2018-2020 e agli allegati al bilancio di previsione in approvazione."]
[" ",{"$nulls":6}," "]
[" ",null," "," "," ","Il Responsabile del Settore Finanziario"]
[{"$nulls":5},"Angelo Pizzighini"]
[" "]